[Event "ESP-chT 2nd Division 2019"]
[Site "Linares"]
[Date "2019.08.19"]
[Round "1.16"]
[White "Gamundi Salamanca, Antonio"]
[Black "Rego, Pedro Filipe"]
[Result "1-0"]
[ECO "A45"]
[WhiteElo "2444"]
[BlackElo "2264"]
[Annotator "NA"]
[PlyCount "71"]
[EventDate "2019.08.19"]
[EventType "team-tourn"]
[EventCountry "ESP"]
[SourceTitle "playchess.com"]
[Source "ChessBase"]
[SourceQuality "1"]
[TimeControl "5400+30"]

1. d4 {[%emt 0:00:00]} Nf6 {[%emt 0:00:00]} 2. Bf4 {[%emt 0:00:02]} d5 {[%emt 0:00:00]} 3. e3 {[%emt 0:00:14]} c5 {[%emt 0:00:22]} 4. c3 {[%emt 0:00:08]} Nc6 {[%emt 0:00:08]} 5. Nd2 {[%emt 0:00:14]} e6 {[%emt 0:00:08]} 6. Ngf3 {[%emt 0:00:30]} cxd4 {[%emt 0:00:10]} 7. exd4 {[%emt 0:00:28]} Nh5 {[%emt 0:00:15]} 8. Be3 {[%emt 0:06:33]} Bd6 {[%emt 0:00:11]} 9. Ne5 {[%emt 0:02:31]} g6 {[%emt 0:00:36]} 10. Bb5 {[%emt 0:15:49]} Bd7 {[%emt 0:13:22]} 11. Nxd7 {[%emt 0:02:45]} Qxd7 {[%emt 0:00:16]} 12. O-O {[%emt 0:00:06]} O-O {[%emt 0:05:14]} 13. Re1 {[%emt 0:01:30]} Qc7 {[%emt 0:03:58]} 14. Nf3 {[%emt 0:03:09]} Qb6 {[%emt 0:08:53]} 15. Qe2 {[%emt 0:08:42]} Nf4 {[%emt 0:08:01]} 16. Qf1 {[%emt 0:00:56]} Nh5 {[%emt 0:04:04]} 17. Rab1 {[%emt 0:01:54]} a6 {[%emt 0:02:41]} 18. Bd3 {[%emt 0:01:50]} Qc7 {[%emt 0:00:52]} 19. g3 {[%emt 0:03:26]} Rae8 {[%emt 0:08:07]} 20. Bh6 {[%emt 0:09:09]} Ng7 {[%emt 0:00:15]} 21. Qg2 {[%emt 0:03:18]} f6 {[%emt 0:03:08]} 22. Re2 {[%emt 0:01:24]} e5 {[%emt 0:01:31]} 23. dxe5 {[%emt 0:00:47]} fxe5 {[%emt 0:00:39]} 24. Ng5 {[%emt 0:00:04]} e4 {[%emt 0:00:36]} 25. Bc2 {[%emt 0:00:27]} Kh8 {[%emt 0:07:46]} 26. Bb3 {[%emt 0:01:21]} Ne5 {[%emt 0:00:27]} 27. Bxd5 {[%emt 0:01:53]} Nf3+ {[%emt 0:00:05]} 28. Nxf3 {[%emt 0:03:58]} exf3 {[%emt 0:01:33]} 29. Bxf3 {[%emt 0:01:06]} Rxe2 {[%emt 0:00:24]} 30. Bxe2 {[%emt 0:02:31]} Bc5 {[%emt 0:00:10]} 31. Rf1 {[%emt 0:00:43]} Re8 {[%emt 0:03:30]} 32. Bf3 {[%emt 0:01:04]} b5 {[%emt 0:05:46]} 33. Bg4 {[%emt 0:03:36]} Qd6 {[%emt 0:04:14]} 34. Qb7 {[%emt 0:02:33]} Re7 {[%emt 0:03:03]} 35. Qc8+ {[%emt 0:01:53]} Ne8 {[%emt 0:00:03]} 36. Bf8 {[%emt 0:01:50]} 1-0

[Event "ESP-chT 2nd Division 2019"]
[Site "Linares"]
[Date "2019.08.19"]
[Round "1.19"]
[White "Del Moral Collado, Enrique"]
[Black "Terron Elena, Francisco M."]
[Result "1/2-1/2"]
[ECO "C55"]
[WhiteElo "1779"]
[BlackElo "2167"]
[Annotator "NA"]
[PlyCount "86"]
[EventDate "2019.08.19"]
[EventType "team-tourn"]
[EventCountry "ESP"]
[SourceTitle "playchess.com"]
[Source "ChessBase"]
[SourceQuality "1"]
[TimeControl "5400+30"]

1. e4 {[%emt 0:00:00]} e5 {[%emt 0:00:00]} 2. Nf3 {[%emt 0:00:04]} Nc6 {[%emt 0:00:14]} 3. Bc4 {[%emt 0:00:55]} Nf6 {[%emt 0:00:17]} 4. d3 {[%emt 0:00:25]} h6 {[%emt 0:00:36]} 5. c3 {[%emt 0:01:00]} d6 {[%emt 0:00:24]} 6. h3 {[%emt 0:03:58]} g6 {[%emt 0:01:27]} 7. O-O {[%emt 0:03:17]} Bg7 {[%emt 0:00:28]} 8. Nbd2 {[%emt 0:01:41]} O-O {[%emt 0:00:19]} 9. Bb3 {[%emt 0:02:57]} Kh7 {[%emt 0:08:29]} 10. Re1 {[%emt 0:04:32]} Ng8 {[%emt 0:00:47]} 11. Nf1 {[%emt 0:05:48]} f5 {[%emt 0:01:16]} 12. exf5 {[%emt 0:07:05]} gxf5 {[%emt 0:03:44]} 13. Ng3 {[%emt 0:05:23]} Qe8 {[%emt 0:07:29]} 14. Nh2 {[%emt 0:15:26]} Nf6 {[%emt 0:06:57]} 15. f4 {[%emt 0:01:49]} Qg6 {[%emt 0:12:05]} 16. Qf3 {[%emt 0:03:56]} Bd7 {[%emt 0:06:39]} 17. Bd2 {[%emt 0:03:19]} h5 {[%emt 0:08:30]} 18. Bd1 {[%emt 0:09:53]} Be8 {[%emt 0:09:30]} 19. fxe5 {[%emt 0:06:25]} Nxe5 {[%emt 0:00:11]} 20. Qxf5 {[%emt 0:00:15]} h4 {[%emt 0:00:17]} 21. Qxg6+ Bxg6 {[%emt 0:00:09]} 22. Ne4 {[%emt 0:04:31]} Nxd3 {[%emt 0:00:13]} 23. Ng5+ {[%emt 0:01:06]} Kh8 {[%emt 0:00:35]} 24. Bc2 {[%emt 0:04:34]} Ne5 {[%emt 0:10:00]} 25. Rxe5 {[%emt 0:01:55]} Bxc2 {[%emt 0:00:11]} 26. Re7 {[%emt 0:00:09]} Nd5 {[%emt 0:00:01]} 27. Rxg7 {[%emt 0:02:20]} Kxg7 28. Ne6+ {[%emt 0:00:08]} Kg6 {[%emt 0:00:10]} 29. Nxf8+ {[%emt 0:00:13]} Rxf8 {[%emt 0:00:01]} 30. Nf3 {[%emt 0:01:35]} Kh5 {[%emt 0:00:06]} 31. Re1 {[%emt 0:01:07]} Bg6 {[%emt 0:03:05]} 32. Re6 {[%emt 0:05:19]} Nf4 {[%emt 0:01:15]} 33. Bxf4 {[%emt 0:02:40]} Rxf4 {[%emt 0:00:06]} 34. Re7 {[%emt 0:00:13]} Rf7 {[%emt 0:06:36]} 35. Re8 {[%emt 0:01:32]} Rg7 {[%emt 0:01:35]} 36. Rh8+ {[%emt 0:00:54]} Rh7 {[%emt 0:00:32]} 37. Rg8 {[%emt 0:00:28]} Be4 {[%emt 0:03:55]} 38. Rg5+ {[%emt 0:00:59]} Kh6 {[%emt 0:00:35]} 39. Rg4 {[%emt 0:00:14]} Bxf3 {[%emt 0:00:48]} 40. Rxh4+ {[%emt 0:00:20]} Bh5 {[%emt 0:00:01]} 41. g4 {[%emt 0:00:08]} Kg5 42. Rxh5+ {[%emt 0:00:15]} Rxh5 {[%emt 0:00:06]} 43. gxh5 {[%emt 0:00:08]} Kxh5 {[%emt 0:00:01]} 1/2-1/2

[Event "ESP-chT 2nd Division 2019"]
[Site "Linares"]
[Date "2019.08.19"]
[Round "1.20"]
[White "Lopez Guerrero, Jose Miguel"]
[Black "Gallego Sosa, Clara"]
[Result "1-0"]
[ECO "B52"]
[WhiteElo "2079"]
[BlackElo "1696"]
[Annotator "NA"]
[PlyCount "87"]
[EventDate "2019.08.19"]
[EventType "team-tourn"]
[EventCountry "ESP"]
[SourceTitle "playchess.com"]
[Source "ChessBase"]
[SourceQuality "1"]
[TimeControl "5400+30"]

1. e4 {[%emt 0:00:00]} c5 {[%emt 0:00:00]} 2. Nf3 {[%emt 0:00:00]} d6 {[%emt 0:00:04]} 3. Bb5+ {[%emt 0:00:00]} Bd7 {[%emt 0:00:26]} 4. Bxd7+ Qxd7 {[%emt 0:01:14]} 5. c4 {[%emt 0:00:00]} Nc6 {[%emt 0:01:35]} 6. d4 {[%emt 0:00:04]} cxd4 {[%emt 0:00:22]} 7. Nxd4 {[%emt 0:00:03]} Nf6 {[%emt 0:00:23]} 8. Nc3 {[%emt 0:00:07]} g6 {[%emt 0:00:55]} 9. f3 {[%emt 0:01:02]} Bg7 {[%emt 0:01:04]} 10. Be3 {[%emt 0:00:14]} Ne5 {[%emt 0:05:41]} 11. b3 {[%emt 0:00:37]} O-O {[%emt 0:01:38]} 12. O-O {[%emt 0:03:03]} Rac8 {[%emt 0:02:40]} 13. Qd2 {[%emt 0:01:04]} Nc6 {[%emt 0:05:57]} 14. Rad1 {[%emt 0:00:52]} Rfd8 {[%emt 0:02:52]} 15. Rfe1 {[%emt 0:05:50]} a6 {[%emt 0:02:58]} 16. Na4 {[%emt 0:02:16]} Rb8 {[%emt 0:05:29]} 17. Nxc6 {[%emt 0:04:38]} bxc6 {[%emt 0:04:13]} 18. Bb6 {[%emt 0:01:40]} Rf8 {[%emt 0:05:36]} 19. Bd4 {[%emt 0:08:34]} Qb7 {[%emt 0:09:12]} 20. e5 {[%emt 0:01:09]} dxe5 {[%emt 0:02:25]} 21. Bxe5 {[%emt 0:00:26]} Rbc8 {[%emt 0:04:20]} 22. Qa5 {[%emt 0:03:26]} e6 {[%emt 0:03:48]} 23. Qb6 Qxb6+ {[%emt 0:01:28]} 24. Nxb6 {[%emt 0:01:07]} Rcd8 {[%emt 0:00:14]} 25. Bxf6 {[%emt 0:00:09]} Bxf6 {[%emt 0:00:26]} 26. Nd7 {[%emt 0:00:04]} Bc3 {[%emt 0:04:11]} 27. Nxf8 Rxf8 {[%emt 0:00:16]} 28. Re3 {[%emt 0:00:57]} Bf6 {[%emt 0:00:40]} 29. Red3 {[%emt 0:00:30]} Be7 {[%emt 0:03:06]} 30. Rd7 {[%emt 0:00:35]} Bb4 {[%emt 0:01:01]} 31. Kf1 {[%emt 0:01:48]} Kg7 {[%emt 0:00:53]} 32. Rc7 {[%emt 0:01:05]} c5 {[%emt 0:00:49]} 33. Rdd7 {[%emt 0:00:07]} g5 {[%emt 0:02:12]} 34. g4 {[%emt 0:00:08]} Kg6 {[%emt 0:01:18]} 35. Ke2 {[%emt 0:01:19]} h6 {[%emt 0:01:37]} 36. h3 {[%emt 0:00:59]} Kf6 {[%emt 0:02:43]} 37. Kd3 {[%emt 0:01:17]} Kg6 {[%emt 0:01:26]} 38. Ke3 {[%emt 0:01:18]} Kf6 {[%emt 0:01:13]} 39. Ke4 {[%emt 0:00:06]} Kg6 {[%emt 0:00:46]} 40. Ke5 {[%emt 0:02:14]} Bc3+ {[%emt 0:03:54]} 41. Kd6 {[%emt 0:01:26]} Bb4 {[%emt 0:00:32]} 42. Rb7 {[%emt 0:03:33]} Kf6 {[%emt 0:02:34]} 43. Rxb4 {[%emt 0:00:43]} cxb4 {[%emt 0:00:10]} 44. c5 {[%emt 0:00:08]} 1-0

[Event "ESP-chT 2nd Division 2019"]
[Site "Linares"]
[Date "2019.08.19"]
[Round "1.21"]
[White "Ramos Moreno, Francisco Jose"]
[Black "Adla, Diego"]
[Result "1/2-1/2"]
[ECO "C44"]
[WhiteElo "2112"]
[BlackElo "2424"]
[Annotator "NA"]
[PlyCount "73"]
[EventDate "2019.08.19"]
[EventType "team-tourn"]
[EventCountry "ESP"]
[SourceTitle "playchess.com"]
[Source "ChessBase"]
[SourceQuality "1"]
[TimeControl "5400+30"]

1. e4 {[%emt 0:00:00]} e5 {[%emt 0:04:53]} 2. d4 {[%emt 0:00:00]} exd4 {[%emt 0:00:07]} 3. Nf3 {[%emt 0:00:00]} Nc6 {[%emt 0:00:50]} 4. c3 {[%emt 0:00:05]} d5 {[%emt 0:02:12]} 5. exd5 {[%emt 0:00:07]} Qxd5 {[%emt 0:00:07]} 6. cxd4 {[%emt 0:00:07]} Bg4 {[%emt 0:00:35]} 7. Be2 {[%emt 0:00:08]} Bb4+ {[%emt 0:00:13]} 8. Nc3 {[%emt 0:00:08]} Bxf3 {[%emt 0:00:56]} 9. Bxf3 {[%emt 0:00:08]} Qc4 {[%emt 0:00:04]} 10. Bxc6+ {[%emt 0:00:16]} bxc6 {[%emt 0:00:11]} 11. Qe2+ {[%emt 0:00:10]} Qxe2+ {[%emt 0:00:07]} 12. Kxe2 {[%emt 0:00:07]} O-O-O {[%emt 0:00:10]} 13. Be3 {[%emt 0:00:13]} Nf6 {[%emt 0:00:56]} 14. Kd3 {[%emt 0:01:40]} Rhe8 {[%emt 0:13:28]} 15. Kc4 {[%emt 0:02:07]} Bxc3 {[%emt 0:09:36]} 16. bxc3 {[%emt 0:00:09]} Rd5 {[%emt 0:00:06]} 17. Rhe1 {[%emt 0:13:40]} Ra5 {[%emt 0:07:17]} 18. a4 {[%emt 0:14:55]} Kd7 {[%emt 0:03:27]} 19. Kd3 {[%emt 0:09:10]} Rb8 {[%emt 0:01:20]} 20. c4 {[%emt 0:03:57]} Rh5 {[%emt 0:00:17]} 21. h3 {[%emt 0:02:14]} Rf5 {[%emt 0:02:27]} 22. a5 {[%emt 0:11:34]} a6 {[%emt 0:01:33]} 23. g4 {[%emt 0:08:11]} Rf3 {[%emt 0:00:06]} 24. Rh1 {[%emt 0:01:32]} Rb2 {[%emt 0:02:54]} 25. g5 {[%emt 0:01:25]} Nh5 {[%emt 0:00:30]} 26. Ke4 {[%emt 0:00:40]} Rfxf2 {[%emt 0:02:54]} 27. Bxf2 {[%emt 0:00:22]} Rxf2 {[%emt 0:00:02]} 28. Ke3 {[%emt 0:01:47]} Rg2 {[%emt 0:00:40]} 29. h4 {[%emt 0:03:34]} Rg3+ {[%emt 0:01:18]} 30. Kd2 {[%emt 0:03:30]} Rg2+ {[%emt 0:00:48]} 31. Kc3 {[%emt 0:00:58]} Ng3 {[%emt 0:05:53]} 32. Rhe1 {[%emt 0:02:08]} Nf5 {[%emt 0:01:03]} 33. Rg1 {[%emt 0:09:22]} Rh2 {[%emt 0:00:21]} 34. Rh1 {[%emt 0:00:15]} Rg2 {[%emt 0:00:27]} 35. Rhg1 {[%emt 0:03:08]} Rh2 {[%emt 0:00:23]} 36. Rh1 {[%emt 0:00:06]} Rg2 {[%emt 0:00:08]} 37. Rhg1 {[%emt 0:00:05]} 1/2-1/2

[Event "ESP-chT 2nd Division 2019"]
[Site "Linares"]
[Date "2019.08.19"]
[Round "1.22"]
[White "Glavina, Pablo"]
[Black "Ledesma Claros, Daniel"]
[Result "1-0"]
[ECO "A21"]
[WhiteElo "2407"]
[BlackElo "2061"]
[Annotator "NA"]
[PlyCount "53"]
[EventDate "2019.08.19"]
[EventType "team-tourn"]
[EventCountry "ESP"]
[SourceTitle "playchess.com"]
[Source "ChessBase"]
[SourceQuality "1"]
[TimeControl "5400+30"]

1. c4 {[%emt 0:00:00]} e5 {[%emt 0:00:00]} 2. Nc3 {[%emt 0:00:00]} Bb4 {[%emt 0:00:00]} 3. Nf3 {[%emt 0:00:05]} Bxc3 {[%emt 0:03:53]} 4. dxc3 {[%emt 0:00:34]} e4 {[%emt 0:00:19]} 5. Nd4 {[%emt 0:00:06]} Nf6 {[%emt 0:03:17]} 6. g3 {[%emt 0:01:51]} O-O {[%emt 0:00:28]} 7. Bg2 {[%emt 0:00:04]} Re8 {[%emt 0:00:52]} 8. O-O {[%emt 0:00:11]} d6 {[%emt 0:08:22]} 9. h3 {[%emt 0:02:16]} h6 {[%emt 0:04:35]} 10. a4 {[%emt 0:02:05]} Nbd7 {[%emt 0:01:56]} 11. a5 {[%emt 0:00:11]} Ne5 {[%emt 0:02:50]} 12. b3 {[%emt 0:00:40]} a6 {[%emt 0:03:53]} 13. Nc2 {[%emt 0:02:59]} Be6 {[%emt 0:02:36]} 14. Ne3 {[%emt 0:00:28]} Qd7 {[%emt 0:03:59]} 15. Kh2 {[%emt 0:00:06]} Rad8 {[%emt 0:03:45]} 16. Ra2 {[%emt 0:04:03]} c6 {[%emt 0:05:24]} 17. f4 {[%emt 0:03:00]} exf3 {[%emt 0:01:16]} 18. exf3 {[%emt 0:00:06]} Bf5 {[%emt 0:02:15]} 19. Rd2 {[%emt 0:00:17]} Bh7 {[%emt 0:04:24]} 20. Ba3 {[%emt 0:02:24]} c5 {[%emt 0:11:10]} 21. Bxc5 {[%emt 0:01:59]} dxc5 {[%emt 0:03:16]} 22. Rxd7 {[%emt 0:00:07]} Rxd7 {[%emt 0:00:06]} 23. Nd5 {[%emt 0:00:04]} Nxd5 {[%emt 0:07:48]} 24. cxd5 {[%emt 0:00:07]} c4 {[%emt 0:02:30]} 25. bxc4 {[%emt 0:01:21]} Nxc4 {[%emt 0:01:39]} 26. Qa4 {[%emt 0:00:16]} Rxd5 {[%emt 0:04:03]} 27. Qxe8# 1-0

[Event "ESP-chT 2nd Division 2019"]
[Site "Linares"]
[Date "2019.08.19"]
[Round "1.23"]
[White "Garrido Diaz, Ernesto"]
[Black "Quintin Navarro, Alberto"]
[Result "0-1"]
[ECO "C44"]
[WhiteElo "2012"]
[BlackElo "2376"]
[Annotator "NA"]
[PlyCount "72"]
[EventDate "2019.08.19"]
[EventType "team-tourn"]
[EventCountry "ESP"]
[SourceTitle "playchess.com"]
[Source "ChessBase"]
[SourceQuality "1"]
[TimeControl "5400+30"]

1. e4 {[%emt 0:00:00]} e5 {[%emt 0:00:54]} 2. Nf3 {[%emt 0:00:00]} Nc6 {[%emt 0:00:06]} 3. d4 {[%emt 0:00:39]} exd4 {[%emt 0:00:08]} 4. Nxd4 {[%emt 0:00:13]} g6 {[%emt 0:00:07]} 5. c4 {[%emt 0:03:45]} Bg7 {[%emt 0:00:15]} 6. Be3 {[%emt 0:01:05]} Nf6 {[%emt 0:00:11]} 7. Nc3 {[%emt 0:00:32]} d6 {[%emt 0:01:50]} 8. Be2 {[%emt 0:01:14]} O-O {[%emt 0:00:13]} 9. O-O {[%emt 0:01:52]} Re8 {[%emt 0:00:39]} 10. f3 {[%emt 0:06:15]} Bd7 {[%emt 0:12:14]} 11. Qd2 {[%emt 0:04:01]} Nh5 {[%emt 0:09:14]} 12. Nxc6 {[%emt 0:08:10]} Bxc6 {[%emt 0:00:27]} 13. Rad1 {[%emt 0:05:55]} a6 {[%emt 0:12:03]} 14. Kh1 {[%emt 0:16:22]} b5 {[%emt 0:06:52]} 15. cxb5 {[%emt 0:08:04]} axb5 {[%emt 0:00:10]} 16. a3 {[%emt 0:00:43]} Qb8 {[%emt 0:06:43]} 17. Na2 {[%emt 0:06:46]} Qb7 {[%emt 0:08:49]} 18. Nb4 {[%emt 0:03:07]} Bd7 {[%emt 0:00:16]} 19. Rc1 {[%emt 0:04:24]} Nf6 {[%emt 0:06:32]} 20. Rfd1 {[%emt 0:04:20]} c5 {[%emt 0:04:03]} 21. Nd5 {[%emt 0:01:50]} Nxd5 {[%emt 0:00:38]} 22. Qxd5 {[%emt 0:01:13]} Qxd5 {[%emt 0:00:45]} 23. Rxd5 {[%emt 0:00:06]} Bxb2 24. Rcd1 {[%emt 0:07:41]} Rxa3 {[%emt 0:02:14]} 25. Bxc5 {[%emt 0:02:22]} dxc5 {[%emt 0:00:54]} 26. Rxd7 {[%emt 0:00:26]} c4 {[%emt 0:00:19]} 27. Rc7 {[%emt 0:04:07]} Rb8 {[%emt 0:03:18]} 28. Rc5 {[%emt 0:02:55]} Ra1 {[%emt 0:02:27]} 29. Rxa1 {[%emt 0:01:46]} Bxa1 {[%emt 0:00:07]} 30. g3 {[%emt 0:03:07]} Bd4 {[%emt 0:00:19]} 31. Rd5 {[%emt 0:00:44]} Be3 32. Rd1 {[%emt 0:01:06]} c3 {[%emt 0:00:42]} 33. Bd3 {[%emt 0:00:36]} b4 {[%emt 0:00:11]} 34. Re1 {[%emt 0:00:33]} Bd2 {[%emt 0:00:17]} 35. Rb1 {[%emt 0:00:33]} b3 {[%emt 0:00:16]} 36. Kg2 {[%emt 0:00:37]} Rb4 {[%emt 0:00:16]} 0-1

[Event "ESP-chT 2nd Division 2019"]
[Site "Linares"]
[Date "2019.08.19"]
[Round "1.24"]
[White "Vela Frago, Alberto"]
[Black "Garrido Diaz, Jose Antonio"]
[Result "1/2-1/2"]
[ECO "A13"]
[WhiteElo "2155"]
[BlackElo "1959"]
[Annotator "NA"]
[PlyCount "80"]
[EventDate "2019.08.19"]
[EventType "team-tourn"]
[EventCountry "ESP"]
[SourceTitle "playchess.com"]
[Source "ChessBase"]
[SourceQuality "1"]
[TimeControl "5400+30"]

1. c4 {[%emt 0:00:00]} e6 {[%emt 0:00:06]} 2. Nf3 {[%emt 0:00:05]} d5 {[%emt 0:00:26]} 3. e3 {[%emt 0:00:41]} Nf6 {[%emt 0:00:40]} 4. b3 {[%emt 0:00:39]} Bd6 {[%emt 0:01:26]} 5. Bb2 {[%emt 0:03:08]} c6 {[%emt 0:01:17]} 6. Be2 {[%emt 0:02:36]} Nbd7 {[%emt 0:00:16]} 7. d4 {[%emt 0:01:41]} O-O {[%emt 0:02:20]} 8. O-O {[%emt 0:01:28]} b6 {[%emt 0:00:54]} 9. Nbd2 {[%emt 0:02:27]} Bb7 {[%emt 0:00:55]} 10. Rc1 {[%emt 0:02:41]} Qe7 {[%emt 0:06:08]} 11. Ne5 {[%emt 0:03:16]} c5 {[%emt 0:04:11]} 12. cxd5 {[%emt 0:17:10]} exd5 {[%emt 0:04:38]} 13. Nxd7 {[%emt 0:00:42]} Nxd7 {[%emt 0:01:37]} 14. Bf3 {[%emt 0:00:52]} Nf6 {[%emt 0:07:12]} 15. Nb1 {[%emt 0:06:07]} Rfd8 {[%emt 0:06:02]} 16. Qe2 {[%emt 0:02:29]} Rac8 {[%emt 0:07:57]} 17. Rfd1 {[%emt 0:02:20]} h6 {[%emt 0:07:06]} 18. g3 {[%emt 0:00:17]} cxd4 {[%emt 0:04:14]} 19. Bxd4 {[%emt 0:02:35]} Be5 {[%emt 0:01:50]} 20. Qb2 {[%emt 0:01:21]} Bxd4 {[%emt 0:02:45]} 21. Qxd4 {[%emt 0:00:27]} Ne4 {[%emt 0:03:05]} 22. Bg4 {[%emt 0:12:48]} Rxc1 {[%emt 0:03:50]} 23. Rxc1 {[%emt 0:00:02]} Nc5 {[%emt 0:01:31]} 24. Rd1 {[%emt 0:04:41]} Ne6 {[%emt 0:02:54]} 25. Qb2 {[%emt 0:06:51]} d4 {[%emt 0:04:32]} 26. Qe2 {[%emt 0:05:43]} Qd6 {[%emt 0:05:03]} 27. Nd2 {[%emt 0:05:03]} d3 {[%emt 0:02:11]} 28. Qe1 {[%emt 0:00:34]} Ng5 {[%emt 0:02:19]} 29. h4 {[%emt 0:06:47]} Qc6 {[%emt 0:04:56]} 30. e4 {[%emt 0:00:35]} Nxe4 {[%emt 0:02:41]} 31. Nxe4 {[%emt 0:00:51]} Qxe4 {[%emt 0:00:08]} 32. Qxe4 {[%emt 0:00:02]} Bxe4 {[%emt 0:00:07]} 33. f3 {[%emt 0:00:38]} Bb7 {[%emt 0:00:47]} 34. Kf2 {[%emt 0:00:39]} Ba6 {[%emt 0:00:05]} 35. Bh3 {[%emt 0:01:16]} g6 {[%emt 0:01:27]} 36. Rd2 {[%emt 0:01:19]} Kg7 {[%emt 0:00:16]} 37. Bf1 {[%emt 0:00:39]} Rc8 {[%emt 0:02:27]} 38. Ke3 {[%emt 0:00:22]} Re8+ {[%emt 0:00:33]} 39. Kf2 {[%emt 0:00:01]} Rc8 {[%emt 0:00:32]} 40. Ke3 {[%emt 0:00:17]} Re8+ {[%emt 0:01:28] Ke4} 1/2-1/2

[Event "ESP-chT 2nd Division 2019"]
[Site "Linares"]
[Date "2019.08.19"]
[Round "1.25"]
[White "Guillen Escalona, Elisa"]
[Black "Roque Sola, Gisela"]
[Result "0-1"]
[ECO "C00"]
[WhiteElo "1719"]
[BlackElo "2048"]
[Annotator "NA"]
[PlyCount "84"]
[EventDate "2019.08.19"]
[EventType "team-tourn"]
[EventCountry "ESP"]
[SourceTitle "playchess.com"]
[Source "ChessBase"]
[SourceQuality "1"]
[TimeControl "5400+30"]

1. e4 {[%emt 0:00:00]} e6 {[%emt 0:00:00]} 2. d4 {[%emt 0:01:00]} d5 {[%emt 0:00:13]} 3. Bd3 {[%emt 0:01:00]} dxe4 {[%emt 0:03:20]} 4. Bxe4 {[%emt 0:00:09]} Nf6 {[%emt 0:01:56]} 5. Bg5 {[%emt 0:01:52]} Be7 {[%emt 0:02:47]} 6. Bxf6 {[%emt 0:00:08]} Bxf6 {[%emt 0:00:17]} 7. Ne2 {[%emt 0:00:08]} c5 {[%emt 0:02:36]} 8. c3 {[%emt 0:03:06]} Qb6 {[%emt 0:05:15]} 9. Na3 {[%emt 0:09:17]} cxd4 {[%emt 0:01:39]} 10. Nc4 {[%emt 0:02:13]} Qc7 {[%emt 0:01:25]} 11. Qa4+ {[%emt 0:01:41]} Bd7 {[%emt 0:00:24]} 12. Qb4 {[%emt 0:00:42]} Be7 {[%emt 0:06:20]} 13. Qxb7 {[%emt 0:02:43]} Qxc4 {[%emt 0:01:57]} 14. Qxa8 {[%emt 0:00:09]} O-O {[%emt 0:00:22]} 15. Nxd4 {[%emt 0:07:38]} Na6 {[%emt 0:08:19]} 16. Qb7 {[%emt 0:00:13]} Nc5 {[%emt 0:07:43]} 17. Qxa7 {[%emt 0:00:06]} e5 {[%emt 0:01:30]} 18. O-O-O {[%emt 0:12:26]} exd4 {[%emt 0:14:35]} 19. Rxd4 {[%emt 0:00:14]} Qe2 {[%emt 0:00:54]} 20. Rxd7 {[%emt 0:06:09]} Bg5+ {[%emt 0:01:28]} 21. Kb1 {[%emt 0:01:51]} Qxe4+ {[%emt 0:00:21]} 22. Ka1 {[%emt 0:00:13]} Nxd7 {[%emt 0:02:18]} 23. Qxd7 {[%emt 0:00:10]} Rd8 {[%emt 0:03:17]} 24. Qb5 {[%emt 0:02:13]} Bf4 {[%emt 0:13:25]} 25. f3 {[%emt 0:04:50]} Qc2 {[%emt 0:01:01]} 26. a3 {[%emt 0:01:42]} Rb8 {[%emt 0:00:28]} 27. Re1 {[%emt 0:00:04]} g6 {[%emt 0:02:25]} 28. Re8+ {[%emt 0:00:42]} Rxe8 {[%emt 0:00:07]} 29. Qxe8+ {[%emt 0:00:06]} Kg7 {[%emt 0:00:05]} 30. g3 {[%emt 0:02:15]} Bd6 {[%emt 0:01:43]} 31. Qe4 {[%emt 0:01:39]} Qxe4 {[%emt 0:03:19]} 32. fxe4 {[%emt 0:00:05]} Kf6 {[%emt 0:00:04]} 33. b4 {[%emt 0:00:28]} Ke5 {[%emt 0:00:36]} 34. a4 {[%emt 0:00:37]} Kxe4 {[%emt 0:00:25]} 35. Ka2 {[%emt 0:03:37]} f5 {[%emt 0:00:23]} 36. a5 {[%emt 0:01:03]} g5 {[%emt 0:00:48]} 37. a6 {[%emt 0:02:19]} Bb8 {[%emt 0:00:05]} 38. b5 {[%emt 0:00:42]} Ba7 {[%emt 0:00:18]} 39. Kb3 {[%emt 0:02:41]} f4 {[%emt 0:01:08]} 40. Kb4 {[%emt 0:02:03]} f3 {[%emt 0:00:17]} 41. c4 {[%emt 0:00:05]} Kd4 {[%emt 0:00:15]} 42. Ka5 {[%emt 0:00:08]} Kc5 {[%emt 0:00:14]} 0-1

[Event "ESP-chT 2nd Division 2019"]
[Site "Linares"]
[Date "2019.08.19"]
[Round "1.26"]
[White "Reinaldo Castineira, Roi"]
[Black "Accattato Martin, Mario"]
[Result "1-0"]
[ECO "D10"]
[WhiteElo "2467"]
[BlackElo "2234"]
[Annotator "ChessBase"]
[PlyCount "55"]
[EventDate "2019.08.19"]
[EventType "team-tourn"]
[EventCountry "ESP"]
[SourceTitle "playchess.com"]
[Source "ChessBase"]
[SourceQuality "1"]
[TimeControl "5400+30"]

1. d4 {[%emt 0:00:00]} d5 {[%emt 0:00:00]} 2. c4 {[%emt 0:00:00]} c6 {[%emt 0:00:00]} 3. cxd5 {[%emt 0:01:02]} cxd5 {[%emt 0:00:10]} 4. Nc3 {[%emt 0:00:07]} Nc6 {[%emt 0:01:03]} 5. e4 {[%emt 0:00:38]} e6 {[%emt 0:17:18]} 6. e5 {[%emt 0:00:09]} Qb6 {[%emt 0:06:36]} 7. Nf3 {[%emt 0:00:13]} Bd7 8. Be2 {[%emt 0:07:52]} Be7 {[%emt 0:08:38]} 9. O-O {[%emt 0:01:48]} h5 {[%emt 0:00:52]} 10. a3 {[%emt 0:01:00]} g5 {[%emt 0:12:12]} 11. Na4 {[%emt 0:01:54]} Qd8 {[%emt 0:00:08]} 12. Be3 {[%emt 0:05:52]} Nh6 {[%emt 0:06:47]} 13. Rc1 {[%emt 0:00:08]} b6 {[%emt 0:04:47]} 14. Ne1 {[%emt 0:01:20]} h4 {[%emt 0:01:19]} 15. Nc3 {[%emt 0:06:04]} Nf5 {[%emt 0:13:35]} 16. Bg4 {[%emt 0:00:57]} O-O {[%emt 0:00:48]} 17. Bxf5 {[%emt 0:13:28]} exf5 {[%emt 0:00:05]} 18. Nxd5 {[%emt 0:00:31]} f4 {[%emt 0:02:47]} 19. Qh5 {[%emt 0:02:53]} Be8 {[%emt 0:04:13]} 20. Nxe7+ {[%emt 0:05:27]} Qxe7 {[%emt 0:00:06]} 21. Bd2 {[%emt 0:00:17]} f6 {[%emt 0:08:51]} 22. Qf3 {[%emt 0:03:13]} fxe5 {[%emt 0:03:45]} 23. Rxc6 {[%emt 0:00:55]} e4 {[%emt 0:01:36]} 24. Qb3+ {[%emt 0:03:02]} Kh7 {[%emt 0:03:40]} 25. Re6 {[%emt 0:01:36]} Qf7 {[%emt 0:00:50]} 26. Bb4 {[%emt 0:01:21]} Ba4 {[%emt 0:00:53]} 27. Qd5 {[%emt 0:00:25]} Rae8 {[%emt 0:00:42]} 28. Qxe4+ {[%emt 0:00:24]} 1-0